[Event "36th Indian-ch U13 Girls 2023"]
[Site "Secunderabad"]
[Date "2023.12.06"]
[Round "4.10"]
[White "Nihira Koul"]
[Black "Shradha S Rai"]
[Result "1-0"]
[ECO "A21"]
[WhiteElo "1484"]
[BlackElo "1142"]
[Annotator "NA RC"]
[PlyCount "101"]
[EventDate "2023.12.04"]
[EventType "swiss"]
[EventCountry "IND"]
[SourceTitle "playchess.com"]
[Source "ChessBase"]
[SourceQuality "1"]
[TimeControl "5400+30"]

1. c4 {[%emt 0:00:24]} e5 {[%emt 0:00:17]} 2. Nc3 {[%emt 0:00:17]} Nf6 {[%emt 0:00:19]} 3. g3 {[%emt 0:00:40]} Bb4 {[%emt 0:00:39]} 4. Bg2 {[%emt 0:00:09]} Bxc3 {[%emt 0:00:21]} 5. bxc3 {[%emt 0:00:15]} O-O {[%emt 0:00:36]} 6. d4 {[%emt 0:02:53]} d6 {[%emt 0:03:57]} 7. Ba3 {[%emt 0:00:38]} Re8 {[%emt 0:00:49]} 8. e3 {[%emt 0:01:12]} Nbd7 {[%emt 0:01:14]} 9. Nf3 {[%emt 0:04:52]} Nb6 {[%emt 0:03:07]} 10. Nd2 {[%emt 0:00:53]} c6 {[%emt 0:01:03]} 11. O-O {[%emt 0:01:32]} exd4 {[%emt 0:04:17]} 12. cxd4 {[%emt 0:00:31]} Bf5 {[%emt 0:00:45]} 13. Qb3 {[%emt 0:02:10]} Ne4 {[%emt 0:02:29]} 14. Nxe4 {[%emt 0:00:50]} Bxe4 {[%emt 0:00:11]} 15. Bxe4 {[%emt 0:00:53]} Rxe4 {[%emt 0:00:13]} 16. Rab1 {[%emt 0:00:10]} d5 {[%emt 0:02:10]} 17. cxd5 {[%emt 0:02:08]} cxd5 {[%emt 0:00:16]} 18. Qd3 {[%emt 0:02:48]} Qd7 {[%emt 0:02:54]} 19. Rfc1 {[%emt 0:01:31]} Rae8 {[%emt 0:04:26]} 20. Qb5 {[%emt 0:09:50]} Qh3 {[%emt 0:05:18]} 21. Rc7 {[%emt 0:07:14]} Nc4 {[%emt 0:09:41]} 22. Qxd5 {[%emt 0:00:12]} Qe6 {[%emt 0:08:08]} 23. Qxe6 {[%emt 0:00:16]} R4xe6 {[%emt 0:00:13]} 24. Rxc4 {[%emt 0:00:13]} Ra6 {[%emt 0:00:11]} 25. Rb3 {[%emt 0:00:18]} h6 {[%emt 0:00:40]} 26. Rc7 {[%emt 0:00:19]} b6 {[%emt 0:00:23]} 27. d5 {[%emt 0:00:20]} Ra5 {[%emt 0:00:37]} 28. Rd3 {[%emt 0:00:15]} Rd8 {[%emt 0:00:14]} 29. d6 {[%emt 0:00:08]} a6 {[%emt 0:01:03]} 30. d7 {[%emt 0:00:07]} Kh7 {[%emt 0:00:51]} 31. Rc8 {[%emt 0:00:08]} Rxd7 {[%emt 0:00:26]} 32. Rxd7 {[%emt 0:00:12]} Rxa3 {[%emt 0:00:06]} 33. Rc6 {[%emt 0:00:35]} b5 {[%emt 0:00:09]} 34. Ra7 {[%emt 0:00:08]} b4 {[%emt 0:00:29]} 35. Rcxa6 {[%emt 0:00:08]} Rc3 {[%emt 0:00:13]} 36. Rxf7 {[%emt 0:00:17]} b3 {[%emt 0:00:11]} 37. axb3 {[%emt 0:00:05]} Rxb3 {[%emt 0:00:11]} 38. Raa7 {[%emt 0:00:05]} Rb1+ {[%emt 0:00:14]} 39. Kg2 {[%emt 0:00:06]} Rb8 {[%emt 0:00:09]} 40. Rxg7+ {[%emt 0:00:06]} Kh8 {[%emt 0:00:10]} 41. Rh7+ {[%emt 0:00:07]} Kg8 {[%emt 0:00:10]} 42. Rag7+ {[%emt 0:00:04]} Kf8 {[%emt 0:00:06]} 43. Rh8+ {[%emt 0:00:03]} Kxg7 {[%emt 0:00:10]} 44. Rxb8 {[%emt 0:00:03]} Kh7 {[%emt 0:00:16]} 45. Rb6 {[%emt 0:00:05]} Kg7 {[%emt 0:00:07]} 46. Kf3 {[%emt 0:00:05]} Kh7 {[%emt 0:00:07]} 47. Kf4 {[%emt 0:00:03]} Kg7 {[%emt 0:00:17]} 48. Kf5 {[%emt 0:00:06]} Kh7 {[%emt 0:00:21]} 49. Rb7+ {[%emt 0:00:06]} Kg8 {[%emt 0:00:10]} 50. Kf6 {[%emt 0:00:06]} Kf8 {[%emt 0:00:38]} 51. Rb8# {[%emt 0:00:13]} 1-0

[Event "36th Indian-ch U13 Girls 2023"]
[Site "Secunderabad"]
[Date "2023.12.06"]
[Round "5.1"]
[White "Akshaya Sathi"]
[Black "Kalyani Sirin"]
[Result "0-1"]
[ECO "C49"]
[WhiteElo "1542"]
[BlackElo "1802"]
[Annotator "NA COMBH"]
[PlyCount "94"]
[EventDate "2023.12.04"]
[EventType "swiss"]
[EventCountry "IND"]
[SourceTitle "playchess.com"]
[Source "ChessBase"]
[SourceQuality "1"]
[TimeControl "5400+30"]

1. e4 {[%emt 0:00:03]} e5 {[%emt 0:00:21]} 2. Nf3 {[%emt 0:00:21]} Nc6 {[%emt 0:00:06]} 3. Nc3 {[%emt 0:00:18]} Nf6 {[%emt 0:00:08]} 4. Bb5 {[%emt 0:00:17]} Bb4 {[%emt 0:00:08]} 5. O-O {[%emt 0:00:33]} O-O {[%emt 0:00:16]} 6. d3 {[%emt 0:00:05]} d6 {[%emt 0:00:05]} 7. Bg5 {[%emt 0:00:10]} Bxc3 {[%emt 0:00:08]} 8. bxc3 {[%emt 0:00:05]} h6 {[%emt 0:02:18]} 9. Bh4 {[%emt 0:00:19]} a6 {[%emt 0:01:16]} 10. Ba4 {[%emt 0:01:05]} Kh7 {[%emt 0:03:51]} 11. Bb3 {[%emt 0:06:12]} g5 {[%emt 0:02:36]} 12. Bg3 {[%emt 0:05:50]} Bg4 {[%emt 0:00:45]} 13. h4 {[%emt 0:06:23]} Kg6 {[%emt 0:03:40]} 14. Qd2 {[%emt 0:08:38]} Bxf3 {[%emt 0:01:03]} 15. gxf3 {[%emt 0:00:09]} Nh5 {[%emt 0:01:51]} 16. hxg5 {[%emt 0:01:12]} hxg5 {[%emt 0:00:09]} 17. Kg2 {[%emt 0:02:49]} Rh8 {[%emt 0:06:56]} 18. Rh1 {[%emt 0:03:38]} Qf6 {[%emt 0:01:32]} 19. Rag1 {[%emt 0:02:39]} Rh6 {[%emt 0:02:53]} 20. Bd5 {[%emt 0:09:16]} Rah8 {[%emt 0:02:49]} 21. Qe3 {[%emt 0:07:47]} Kg7 {[%emt 0:03:06]} 22. Bxc6 {[%emt 0:07:04]} bxc6 {[%emt 0:03:55]} 23. d4 {[%emt 0:08:58]} Nf4+ {[%emt 0:01:52]} 24. Bxf4 {[%emt 0:00:03]} Rxh1 {[%emt 0:00:15]} 25. Bxg5 {[%emt 0:07:47]} Rxg1+ {[%emt 0:03:33]} 26. Kxg1 {[%emt 0:00:01]} Qe6 {[%emt 0:00:11]} 27. Kf1 {[%emt 0:03:10]} Rh1+ {[%emt 0:00:28]} 28. Ke2 {[%emt 0:00:07]} Qxa2 {[%emt 0:00:11]} 29. Qd2 {[%emt 0:02:28]} Qb1 {[%emt 0:01:01]} 30. Bd8 {[%emt 0:02:57]} f6 {[%emt 0:05:45]} 31. dxe5 {[%emt 0:11:14]} Rc1 {[%emt 0:04:41]} 32. Bxf6+ {[%emt 0:01:48]} Kf7 {[%emt 0:01:56]} 33. Qg5 {[%emt 0:01:47]} Rxc2+ {[%emt 0:05:34]} 34. Ke3 {[%emt 0:00:56]} Qe1+ {[%emt 0:00:18]} 35. Kf4 {[%emt 0:00:27]} Qd2+ {[%emt 0:00:40]} 36. Kg4 {[%emt 0:00:10]} Qxg5+ {[%emt 0:00:06]} 37. Kxg5 {[%emt 0:00:10]} a5 {[%emt 0:01:52]} 38. exd6 {[%emt 0:02:01]} cxd6 {[%emt 0:00:08]} 39. e5 {[%emt 0:00:31]} dxe5 {[%emt 0:00:17]} 40. Bxe5 {[%emt 0:00:02]} a4 {[%emt 0:00:09]} 41. Kf4 {[%emt 0:00:22]} a3 {[%emt 0:00:05]} 42. Ke3 {[%emt 0:00:23]} a2 {[%emt 0:00:12]} 43. c4 {[%emt 0:00:01]} Rxc4 {[%emt 0:00:27]} 44. Kd2 {[%emt 0:00:18]} Rb4 {[%emt 0:00:05]} 45. f4 {[%emt 0:01:04]} Rb1 {[%emt 0:00:06]} 46. f5 {[%emt 0:00:04]} a1=Q {[%emt 0:00:05]} 47. Bxa1 {[%emt 0:00:03]} Rxa1 {[%emt 0:00:09]} 0-1

[Event "36th Indian-ch U13 Girls 2023"]
[Site "Secunderabad"]
[Date "2023.12.06"]
[Round "5.2"]
[White "Gorli Nyna"]
[Black "Aamuktha Guntaka"]
[Result "1-0"]
[ECO "B22"]
[WhiteElo "1652"]
[BlackElo "1532"]
[Annotator "NA COMBH"]
[PlyCount "159"]
[EventDate "2023.12.04"]
[EventType "swiss"]
[EventCountry "IND"]
[SourceTitle "playchess.com"]
[Source "ChessBase"]
[SourceQuality "1"]
[TimeControl "5400+30"]

1. e4 {[%emt 0:00:05]} c5 {[%emt 0:01:18]} 2. c3 {[%emt 0:00:22]} Nf6 {[%emt 0:00:36]} 3. e5 {[%emt 0:00:07]} Nd5 {[%emt 0:00:13]} 4. Nf3 {[%emt 0:00:06]} e6 {[%emt 0:00:32]} 5. Bc4 {[%emt 0:00:19]} d6 {[%emt 0:00:38]} 6. exd6 {[%emt 0:00:36]} Bxd6 {[%emt 0:01:02]} 7. O-O {[%emt 0:00:14]} O-O {[%emt 0:01:00]} 8. h3 {[%emt 0:02:23]} Nc6 {[%emt 0:02:31]} 9. d4 {[%emt 0:01:11]} cxd4 {[%emt 0:01:50]} 10. Nxd4 {[%emt 0:01:42]} Nb6 {[%emt 0:05:08]} 11. Bb3 {[%emt 0:01:17]} Nxd4 {[%emt 1:21:12]} 12. Qxd4 {[%emt 0:00:48]} Qc7 {[%emt 0:00:00]} 13. Qg4 {[%emt 0:04:29]} Kh8 {[%emt 0:00:00]} 14. Nd2 {[%emt 0:05:20]} e5 {[%emt 0:00:00]} 15. Qe2 {[%emt 0:00:40]} Bf5 {[%emt 0:00:00]} 16. Nf3 {[%emt 0:01:48]} Rae8 {[%emt 0:00:00]} 17. Be3 {[%emt 0:00:53]} Bc5 {[%emt 0:00:00]} 18. Rfe1 {[%emt 0:03:06]} Bxe3 {[%emt 0:00:00]} 19. Qxe3 {[%emt 0:00:03]} f6 {[%emt 0:04:00]} 20. Rad1 {[%emt 0:03:00]} a5 {[%emt 0:00:00]} 21. Nh4 {[%emt 0:05:14]} Be6 {[%emt 0:00:00]} 22. Bxe6 {[%emt 0:00:24]} Rxe6 {[%emt 0:00:00]} 23. Nf5 {[%emt 0:00:19]} Nc4 {[%emt 0:00:00]} 24. Qe2 {[%emt 0:00:30]} Rb6 {[%emt 0:00:00]} 25. b3 {[%emt 0:02:31]} Nd6 {[%emt 0:00:00]} 26. Ne3 {[%emt 0:01:11]} Rc6 {[%emt 0:00:00]} 27. Nd5 {[%emt 0:00:44]} Qb8 {[%emt 0:00:00]} 28. Ne7 {[%emt 0:02:50]} Rc7 {[%emt 0:01:14]} 29. Rxd6 {[%emt 0:00:14]} Rxe7 {[%emt 0:00:06]} 30. Red1 {[%emt 0:00:06]} Qc7 {[%emt 0:02:10]} 31. Qd3 {[%emt 0:02:17]} g6 {[%emt 0:01:45]} 32. c4 {[%emt 0:00:36]} Kg7 {[%emt 0:00:38]} 33. Qd5 {[%emt 0:02:49]} Rff7 {[%emt 0:00:33]} 34. Rd8 {[%emt 0:00:40]} Rf8 {[%emt 0:00:28]} 35. Rd7 {[%emt 0:00:53]} Rxd7 {[%emt 0:00:27]} 36. Qxd7+ {[%emt 0:00:02]} Rf7 {[%emt 0:00:35]} 37. Qe8 {[%emt 0:04:39]} Re7 {[%emt 0:00:25]} 38. Qa8 {[%emt 0:00:59]} b6 {[%emt 0:00:36]} 39. Qd5 {[%emt 0:01:06]} Rf7 {[%emt 0:00:29]} 40. Qb5 {[%emt 0:02:14]} Re7 {[%emt 0:00:29]} 41. Rd5 {[%emt 0:00:05]} e4 {[%emt 0:00:33]} 42. c5 {[%emt 0:01:30]} Qf4 {[%emt 0:00:26]} 43. cxb6 {[%emt 0:02:31]} e3 {[%emt 0:00:28]} 44. Qe2 {[%emt 0:00:41]} Qe4 {[%emt 0:00:36]} 45. Rd1 {[%emt 0:00:18]} Qf4 {[%emt 0:00:28]} 46. fxe3 {[%emt 0:00:50]} Qb4 {[%emt 0:00:32]} 47. Qa6 {[%emt 0:06:14]} Qc3 {[%emt 0:00:28]} 48. Qd3 {[%emt 0:01:38]} Qc6 {[%emt 0:00:29]} 49. Qd8 {[%emt 0:01:03]} Qe4 {[%emt 0:00:22]} 50. Qd4 {[%emt 0:00:34]} Qc6 {[%emt 0:00:32]} 51. Rf1 {[%emt 0:00:30]} Rb7 {[%emt 0:00:36]} 52. Rd1 {[%emt 0:00:40]} Re7 {[%emt 0:00:29]} 53. Kh1 {[%emt 0:00:23]} Rb7 {[%emt 0:00:32]} 54. a3 {[%emt 0:00:19]} Kh6 {[%emt 0:00:29]} 55. Qd6 {[%emt 0:00:54]} Qxb6 {[%emt 0:00:32]} 56. Qf8+ {[%emt 0:00:58]} Kg5 {[%emt 0:00:22]} 57. Rd5+ {[%emt 0:06:36]} f5 {[%emt 0:00:26]} 58. h4+ {[%emt 0:02:34]} Kh5 {[%emt 0:00:43]} 59. Rd3 {[%emt 0:07:30]} h6 {[%emt 0:00:30]} 60. Qh8 {[%emt 0:03:09]} Qe6 {[%emt 0:00:28]} 61. Qc3 {[%emt 0:02:06]} Qe7 {[%emt 0:00:30]} 62. Rd4 {[%emt 0:01:08]} g5 {[%emt 0:00:32]} 63. hxg5 {[%emt 0:03:25]} Qxg5 {[%emt 0:00:21]} 64. Qd3 {[%emt 0:01:31]} Re7 {[%emt 0:00:31]} 65. Qe2+ {[%emt 0:01:47]} Kg6 {[%emt 0:00:15]} 66. Rf4 {[%emt 0:00:25]} Re6 {[%emt 0:00:48]} 67. Qf3 {[%emt 0:00:39]} Qf6 {[%emt 0:00:35]} 68. g4 {[%emt 0:00:59]} Qh4+ {[%emt 0:00:26]} 69. Kg2 {[%emt 0:00:08]} Qg5 {[%emt 0:00:33]} 70. Rxf5 {[%emt 0:00:23]} Qe7 {[%emt 0:00:31]} 71. Kf2 {[%emt 0:04:09]} Qh4+ {[%emt 0:00:20]} 72. Kf1 {[%emt 0:01:30]} Qe7 {[%emt 0:00:19]} 73. Kf2 {[%emt 0:00:42]} Qh4+ {[%emt 0:00:08]} 74. Kg2 {[%emt 0:00:04]} Qe7 {[%emt 0:00:15]} 75. Rb5 {[%emt 0:00:09]} Rxe3 {[%emt 0:01:23]} 76. Rb6+ {[%emt 0:00:08]} Kg7 {[%emt 0:00:35]} 77. Rb7 {[%emt 0:00:06]} Rxf3 {[%emt 0:00:29]} 78. Rxe7+ {[%emt 0:00:06]} Rf7 {[%emt 0:00:25]} 79. Rxf7+ {[%emt 0:00:03]} Kxf7 {[%emt 0:00:05]} 80. Kf3 {[%emt 0:00:03]} 1-0

[Event "36th Indian-ch U13 Girls 2023"]
[Site "Secunderabad"]
[Date "2023.12.06"]
[Round "5.3"]
[White "Sravyasree Bheemarasetty"]
[Black "Pratyasha Jena"]
[Result "0-1"]
[ECO "C54"]
[WhiteElo "1455"]
[BlackElo "1603"]
[Annotator "NA COMBH"]
[PlyCount "164"]
[EventDate "2023.12.04"]
[EventType "swiss"]
[EventCountry "IND"]
[SourceTitle "playchess.com"]
[Source "ChessBase"]
[SourceQuality "1"]
[TimeControl "5400+30"]

1. e4 {[%emt 0:00:03]} e5 {[%emt 0:00:16]} 2. Nf3 {[%emt 0:00:19]} Nc6 {[%emt 0:00:08]} 3. Bc4 {[%emt 0:00:49]} Bc5 {[%emt 0:00:17]} 4. c3 {[%emt 0:00:30]} Nf6 {[%emt 0:00:13]} 5. d3 {[%emt 0:00:59]} d6 {[%emt 0:01:07]} 6. Nbd2 {[%emt 0:00:24]} O-O {[%emt 0:01:12]} 7. O-O {[%emt 0:00:15]} h6 {[%emt 0:01:03]} 8. h3 {[%emt 0:01:34]} Bb6 {[%emt 0:03:04]} 9. Re1 {[%emt 0:01:22]} Re8 {[%emt 0:03:38]} 10. Nf1 {[%emt 0:00:24]} a6 {[%emt 0:05:48]} 11. Bb3 {[%emt 0:00:42]} Ne7 {[%emt 0:03:53]} 12. Nh4 {[%emt 0:04:44]} Be6 {[%emt 0:05:38]} 13. Bc2 {[%emt 0:02:53]} Ng6 {[%emt 1:10:43]} 14. Nxg6 {[%emt 0:04:17]} fxg6 {[%emt 0:00:00]} 15. d4 {[%emt 0:00:31]} Nh5 {[%emt 0:00:00]} 16. g4 {[%emt 0:05:09]} Nf4 {[%emt 0:00:00]} 17. Bxf4 {[%emt 0:00:16]} exf4 {[%emt 0:00:00]} 18. e5 {[%emt 0:02:38]} dxe5 {[%emt 0:00:00]} 19. Bxg6 {[%emt 0:00:12]} Bf7 {[%emt 0:00:00]} 20. Bxf7+ {[%emt 0:02:36]} Kxf7 {[%emt 0:00:00]} 21. Qb3+ {[%emt 0:04:55]} Kf8 {[%emt 0:00:00]} 22. dxe5 {[%emt 0:00:08]} Qh4 {[%emt 0:00:00]} 23. Qc2 {[%emt 0:32:30]} Kg8 {[%emt 0:00:00]} 24. Re4 {[%emt 0:05:57]} Qxh3 {[%emt 0:00:00]} 25. Rxf4 {[%emt 0:00:57]} Rf8 {[%emt 0:00:00]} 26. Qb3+ {[%emt 0:02:54]} Kh7 {[%emt 0:00:00]} 27. Qb4 {[%emt 0:01:15]} Bc5 {[%emt 0:00:00]} 28. Qe4+ {[%emt 0:02:21]} Kh8 {[%emt 0:00:00]} 29. Ne3 {[%emt 0:02:17]} Rxf4 {[%emt 0:00:00]} 30. Qxf4 {[%emt 0:00:25]} Rf8 {[%emt 0:00:00]} 31. Nf5 {[%emt 0:00:53]} g6 {[%emt 0:02:20]} 32. Qg3 {[%emt 0:00:38]} Qxg3+ {[%emt 0:02:25]} 33. Nxg3 {[%emt 0:00:09]} Bxf2+ {[%emt 0:00:05]} 34. Kg2 {[%emt 0:00:04]} Bb6 {[%emt 0:01:33]} 35. Ne4 {[%emt 0:01:05]} Re8 {[%emt 0:00:58]} 36. Rd1 {[%emt 0:01:42]} Rxe5 {[%emt 0:00:46]} 37. Rd8+ {[%emt 0:00:45]} Kg7 {[%emt 0:00:25]} 38. Rd7+ {[%emt 0:00:27]} Kf8 {[%emt 0:01:09]} 39. Kf3 {[%emt 0:01:58]} Re7 {[%emt 0:00:44]} 40. Rd8+ {[%emt 0:01:01]} Kg7 {[%emt 0:00:20]} 41. c4 {[%emt 0:04:12]} c6 {[%emt 0:01:11]} 42. Rb8 {[%emt 0:01:18]} Bd4 {[%emt 0:00:47]} 43. b3 {[%emt 0:01:19]} b6 {[%emt 0:00:35]} 44. b4 {[%emt 0:02:34]} a5 {[%emt 0:00:59]} 45. bxa5 {[%emt 0:01:13]} bxa5 {[%emt 0:00:11]} 46. Rc8 {[%emt 0:01:03]} Rf7+ {[%emt 0:01:07]} 47. Ke2 {[%emt 0:01:00]} c5 {[%emt 0:00:42]} 48. a4 {[%emt 0:02:00]} Rf4 {[%emt 0:00:28]} 49. Rc7+ {[%emt 0:01:32]} Kf8 {[%emt 0:00:33]} 50. Nxc5 {[%emt 0:00:12]} Bxc5 {[%emt 0:00:10]} 51. Rxc5 {[%emt 0:00:35]} Rxg4 {[%emt 0:00:05]} 52. Kd3 {[%emt 0:00:57]} Rg5 {[%emt 0:00:47]} 53. Rc7 {[%emt 0:01:00]} h5 {[%emt 0:00:18]} 54. c5 {[%emt 0:02:16]} h4 {[%emt 0:00:22]} 55. c6 {[%emt 0:00:25]} Rc5 {[%emt 0:00:25]} 56. Kd4 {[%emt 0:00:30]} Rc1 {[%emt 0:00:39]} 57. Kd5 {[%emt 0:01:22]} Kg8 {[%emt 0:00:52]} 58. Re7 {[%emt 0:01:34]} h3 {[%emt 0:00:20]} 59. Re2 {[%emt 0:00:16]} g5 {[%emt 0:00:29]} 60. Kd6 {[%emt 0:01:19]} g4 {[%emt 0:00:09]} 61. Re4 {[%emt 0:00:35]} h2 {[%emt 0:01:22]} 62. Rxg4+ {[%emt 0:00:12]} Kf7 {[%emt 0:00:13]} 63. Rh4 {[%emt 0:00:20]} Rd1+ {[%emt 0:00:45]} 64. Kc7 {[%emt 0:00:32]} h1=Q {[%emt 0:01:16]} 65. Rxh1 {[%emt 0:00:19]} Rxh1 {[%emt 0:00:00]} 66. Kd6 {[%emt 0:00:59]} Ke8 {[%emt 0:00:00]} 67. c7 {[%emt 0:00:13]} Rc1 {[%emt 0:00:04]} 68. Kd5 {[%emt 0:00:18]} Rxc7 {[%emt 0:00:02]} 69. Kd6 {[%emt 0:00:06]} Rc4 {[%emt 0:00:13]} 70. Kd5 {[%emt 0:00:04]} Rxa4 {[%emt 0:00:12]} 71. Kc5 {[%emt 0:00:05]} Rb4 {[%emt 0:00:10]} 72. Kc6 {[%emt 0:00:04]} a4 {[%emt 0:00:05]} 73. Kc5 {[%emt 0:00:03]} Rb1 {[%emt 0:00:05]} 74. Kc4 {[%emt 0:00:04]} a3 {[%emt 0:00:03]} 75. Kd5 {[%emt 0:00:06]} a2 {[%emt 0:00:12]} 76. Ke6 {[%emt 0:00:04]} a1=Q {[%emt 0:04:54]} 77. Kd6 {[%emt 0:00:14]} Qa6+ {[%emt 0:00:00]} 78. Ke5 {[%emt 0:00:08]} Rb5+ {[%emt 0:00:00]} 79. Kd4 {[%emt 0:00:05]} Qa4+ {[%emt 0:00:00]} 80. Kd3 {[%emt 0:00:07]} Rb3+ {[%emt 0:00:00]} 81. Kc2 {[%emt 0:00:07]} Qa2+ {[%emt 0:00:00]} 82. Kc1 {[%emt 0:00:11]} Rb1# {[%emt 0:00:00]} 0-1

[Event "36th Indian-ch U13 Girls 2023"]
[Site "Secunderabad"]
[Date "2023.12.06"]
[Round "5.4"]
[White "Shreya G Hipparagi"]
[Black "Nihira Koul"]
[Result "1-0"]
[ECO "C06"]
[WhiteElo "1576"]
[BlackElo "1484"]
[Annotator "NA COMBH"]
[PlyCount "113"]
[EventDate "2023.12.04"]
[EventType "swiss"]
[EventCountry "IND"]
[SourceTitle "playchess.com"]
[Source "ChessBase"]
[SourceQuality "1"]
[TimeControl "5400+30"]

1. e4 {[%emt 1:31:00]} e6 {[%emt 0:00:33]} 2. d4 {[%emt 0:00:00]} d5 {[%emt 0:00:08]} 3. Nd2 {[%emt 0:00:00]} Nf6 {[%emt 0:01:23]} 4. Bd3 {[%emt 0:00:00]} c5 {[%emt 0:01:06]} 5. e5 {[%emt 0:00:00]} Nfd7 {[%emt 0:00:20]} 6. c3 {[%emt 0:00:00]} Nc6 {[%emt 1:30:00]} 7. Ne2 {[%emt 0:00:00]} Be7 {[%emt 0:00:00]} 8. O-O {[%emt 0:00:00]} a6 {[%emt 0:00:00]} 9. a4 {[%emt 0:00:00]} Rb8 {[%emt 0:00:00]} 10. f4 {[%emt 0:00:00]} O-O {[%emt 0:00:00]} 11. Kh1 {[%emt 0:00:00]} b5 {[%emt 0:00:00]} 12. dxc5 {[%emt 0:00:00]} Nxc5 {[%emt 0:00:00]} 13. Bc2 {[%emt 0:00:00]} b4 {[%emt 0:00:00]} 14. Nd4 {[%emt 0:00:00]} Bb7 {[%emt 0:00:00]} 15. N2f3 {[%emt 0:00:00]} Ne4 {[%emt 0:00:00]} 16. Nxc6 {[%emt 0:00:00]} Bxc6 {[%emt 0:00:00]} 17. Nd4 {[%emt 0:00:00]} Qc7 {[%emt 0:00:00]} 18. Bxe4 {[%emt 0:00:00]} dxe4 {[%emt 0:00:00]} 19. f5 {[%emt 0:00:00]} exf5 {[%emt 0:00:00]} 20. Nxf5 {[%emt 0:00:00]} Rbd8 {[%emt 0:00:00]} 21. Qg4 {[%emt 0:00:00]} Qxe5 {[%emt 0:00:00]} 22. Bf4 {[%emt 0:00:00]} Qf6 {[%emt 0:00:00]} 23. Be3 {[%emt 0:00:00]} Bd7 {[%emt 0:00:00]} 24. Bd4 {[%emt 0:00:00]} Bxf5 {[%emt 0:00:00]} 25. Bxf6 {[%emt 0:00:00]} Bxg4 {[%emt 0:00:00]} 26. Bxe7 {[%emt 0:00:00]} bxc3 {[%emt 0:00:00]} 27. bxc3 {[%emt 0:00:00]} Be2 {[%emt 0:00:00]} 28. Rfe1 {[%emt 0:00:00]} Bd3 {[%emt 0:00:00]} 29. Bxd8 {[%emt 0:00:00]} Rxd8 {[%emt 0:00:00]} 30. Rac1 {[%emt 0:00:00]} Rc8 {[%emt 0:00:13]} 31. c4 {[%emt 0:00:00]} Rc5 {[%emt 0:00:07]} 32. Rc3 {[%emt 0:00:00]} Kf8 {[%emt 0:00:17]} 33. Kg1 {[%emt 0:00:00]} f5 {[%emt 0:00:35]} 34. Rec1 {[%emt 0:00:00]} Ke7 {[%emt 0:00:16]} 35. Kf2 {[%emt 0:00:00]} Kd6 {[%emt 0:00:17]} 36. Ke3 {[%emt 0:00:00]} Ke5 {[%emt 0:13:15]} 37. Rxd3 {[%emt 0:00:00]} exd3 {[%emt 0:00:00]} 38. Kxd3 {[%emt 0:00:00]} Ra5 {[%emt 0:00:00]} 39. Ra1 {[%emt 0:00:00]} Kd6 {[%emt 0:00:00]} 40. Ra2 {[%emt 0:00:00]} Re5 {[%emt 0:00:00]} 41. Rb2 {[%emt 0:00:00]} Kc6 {[%emt 0:00:00]} 42. Rb8 {[%emt 0:00:00]} Kc7 {[%emt 0:02:23]} 43. Rf8 {[%emt 0:00:00]} Kd6 {[%emt 0:00:32]} 44. Rf7 {[%emt 0:00:00]} Ra5 {[%emt 0:00:29]} 45. Rxg7 {[%emt 0:00:00]} Rxa4 {[%emt 0:00:06]} 46. Rxh7 {[%emt 0:00:00]} Ke5 {[%emt 0:00:27]} 47. Re7+ {[%emt 0:00:00]} Kd6 {[%emt 0:00:44]} 48. Re2 {[%emt 0:00:00]} Ra1 {[%emt 0:00:25]} 49. Kd4 {[%emt 0:00:00]} Rd1+ {[%emt 0:00:24]} 50. Kc3 {[%emt 0:00:00]} f4 {[%emt 0:00:56]} 51. Rd2+ {[%emt 0:00:00]} Rxd2 {[%emt 0:00:14]} 52. Kxd2 {[%emt 0:00:00]} Ke5 {[%emt 0:00:38]} 53. Kc3 {[%emt 0:00:00]} a5 {[%emt 0:00:26]} 54. h4 {[%emt 0:00:00]} a4 {[%emt 0:00:38]} 55. Kb4 {[%emt 0:00:00]} Kf5 {[%emt 0:00:14]} 56. c5 {[%emt 0:00:00]} Kg4 {[%emt 0:00:05]} 57. c6 {[%emt 0:00:00]} 1-0

[Event "36th Indian-ch U13 Girls 2023"]
[Site "Secunderabad"]
[Date "2023.12.06"]
[Round "5.5"]
[White "Kirthika B"]
[Black "Durga Karthika Lellapalli"]
[Result "1-0"]
[ECO "C68"]
[WhiteElo "1605"]
[BlackElo "1408"]
[Annotator "NA COMBH"]
[PlyCount "105"]
[EventDate "2023.12.04"]
[EventType "swiss"]
[EventCountry "IND"]
[SourceTitle "playchess.com"]
[Source "ChessBase"]
[SourceQuality "1"]
[TimeControl "5400+30"]

1. e4 {[%emt 0:00:03]} e5 {[%emt 0:00:08]} 2. Nf3 {[%emt 0:00:04]} Nc6 {[%emt 0:00:05]} 3. Bb5 {[%emt 0:00:04]} a6 {[%emt 0:00:05]} 4. Bxc6 {[%emt 0:00:05]} dxc6 {[%emt 0:00:04]} 5. O-O {[%emt 0:00:05]} Qd6 {[%emt 0:00:04]} 6. Na3 {[%emt 0:01:35]} b5 {[%emt 0:00:35]} 7. c3 {[%emt 0:00:52]} c5 {[%emt 0:04:43]} 8. d4 {[%emt 0:02:59]} exd4 {[%emt 0:01:24]} 9. cxd4 {[%emt 0:00:07]} c4 {[%emt 0:01:30]} 10. h3 {[%emt 0:06:22]} Ne7 {[%emt 0:01:18]} 11. Re1 {[%emt 0:08:25]} Ng6 {[%emt 0:01:42]} 12. Nc2 {[%emt 0:02:18]} Be7 {[%emt 0:01:26]} 13. b3 {[%emt 0:06:19]} cxb3 {[%emt 0:00:39]} 14. axb3 {[%emt 0:00:05]} O-O {[%emt 0:00:35]} 15. Ba3 {[%emt 0:02:33]} Qf6 {[%emt 0:01:40]} 16. Bxe7 {[%emt 0:02:08]} Qxe7 {[%emt 0:01:04]} 17. Qd2 {[%emt 0:01:23]} Bb7 {[%emt 0:02:10]} 18. d5 {[%emt 0:03:13]} Rad8 {[%emt 0:09:00]} 19. Qc3 {[%emt 0:06:17]} Rfe8 {[%emt 0:19:45]} 20. Nb4 {[%emt 0:07:45]} Ne5 {[%emt 0:08:28]} 21. Nd4 {[%emt 0:02:26]} Qf6 {[%emt 0:18:16]} 22. Ndc6 {[%emt 0:11:45]} Bxc6 {[%emt 0:05:58]} 23. dxc6 {[%emt 0:02:02]} Rd3 {[%emt 0:02:12]} 24. Qc2 {[%emt 0:08:58]} Rd4 {[%emt 0:01:33]} 25. Nd5 {[%emt 0:18:08]} Qg6 {[%emt 0:06:04]} 26. Qc5 {[%emt 0:05:34]} Nf3+ {[%emt 0:04:24]} 27. Kf1 {[%emt 0:01:33]} Nxe1 {[%emt 0:05:45]} 28. Qxd4 {[%emt 0:00:31]} Qxg2+ {[%emt 0:01:05]} 29. Kxe1 {[%emt 0:00:04]} Rxe4+ {[%emt 0:00:09]} 30. Ne3 {[%emt 0:00:06]} Rxd4 {[%emt 0:01:44]} 31. Nxg2 {[%emt 0:00:05]} Kf8 {[%emt 0:00:17]} 32. Rxa6 {[%emt 0:01:40]} Ke7 {[%emt 0:00:22]} 33. Ne3 {[%emt 0:00:45]} g6 {[%emt 0:00:27]} 34. Ke2 {[%emt 0:00:38]} Kd6 {[%emt 0:00:26]} 35. Ng4 {[%emt 0:00:32]} h5 {[%emt 0:00:30]} 36. Ne3 {[%emt 0:00:16]} Rb4 {[%emt 0:00:27]} 37. Ra3 {[%emt 0:00:28]} Kxc6 {[%emt 0:00:34]} 38. Nc2 {[%emt 0:00:17]} Rh4 {[%emt 0:00:39]} 39. b4 {[%emt 0:00:10]} Rc4 {[%emt 0:01:02]} 40. Kd2 {[%emt 0:00:23]} Rf4 {[%emt 0:00:31]} 41. Rc3+ {[%emt 0:00:27]} Kd6 {[%emt 0:01:14]} 42. Ke2 {[%emt 0:00:22]} Rh4 {[%emt 0:00:37]} 43. Rd3+ {[%emt 0:00:56]} Kc6 {[%emt 0:00:41]} 44. Nd4+ {[%emt 0:01:07]} Kb6 {[%emt 0:00:05]} 45. Nc2 {[%emt 0:00:27]} Rc4 {[%emt 0:00:14]} 46. Kd2 {[%emt 0:00:20]} Rf4 {[%emt 0:00:13]} 47. Ke2 {[%emt 0:00:44]} Rc4 {[%emt 0:00:09]} 48. Ne3 {[%emt 0:00:31]} c6 {[%emt 0:01:01]} 49. Nxc4+ {[%emt 0:00:04]} bxc4 {[%emt 0:00:06]} 50. Rc3 {[%emt 0:00:16]} Kb5 {[%emt 0:00:04]} 51. Kd2 {[%emt 0:00:06]} Kxb4 {[%emt 0:00:21]} 52. Kc2 {[%emt 0:00:08]} f5 {[%emt 0:00:17]} 53. Rg3 {[%emt 0:00:05]} 1-0